Cogmind - Beta 17 @@@ ROGUE MODE // 2026.08.01 @ 15:59:36 Player: OBLIQUE Result: Destroyed by AW-WHQ(R) with Subdweller Laser Performance ------------- Evolutions (0) 0 Regions Visited (3) 600 Robots Destroyed (27) 135 Value Destroyed (676) 676 Prototype IDs (2) 40 Alien Tech Used (0) 0 Bonus (0) 0 TOTAL SCORE: 1451 Bonus ------- None Cogmind --------- Core Integrity 0/250 Matter 92/300 Energy 200/200 System Corruption 0% Temperature Cool (6) Movement Walking (190) Ox1 Location -10/Subcaves Parts ------- > --- POWER (1) -------- Subdweller Power Source > --- PROPULSION (2) --- Aluminum Leg Aluminum Leg > --- UTILITY (2) ------ Disposable Heat Sink Medium Storage Unit > --- WEAPON (2) ------- Battle Cannon Subdweller Shrapnel Launcher > --- INVENTORY (10) --- Subdweller Power Source Aluminum Leg Improved Heat Sink Disposable Heat Sink Subdweller Laser Battle Rifle Battle Cannon Peak State ------------ > --- POWER ------------ Ion Engine > --- PROPULSION ------- Aluminum Leg Carbon-fiber Leg > --- UTILITY ---------- Medium Storage Unit Light Armor Plating > --- WEAPON ----------- Beamcaster Subdweller Machine Gun > --- INVENTORY -------- Ion Engine Light Ion Engine Aluminum Leg Aluminum Leg Aluminum Leg Disposable Heat Sink Disposable Heat Sink Small Battery Light Armor Plating Medium Laser [Rating: 15] Favorites ----------- Power Ion Engine Engine Ion Engine Propulsion Aluminum Leg Treads Light Treads Leg Aluminum Leg Utility Medium Storage Unit Device Disposable Heat Sink Storage Medium Storage Unit Processor Visual Processing Unit Protection Light Armor Plating Weapon Battle Cannon Energy Gun Medium Laser Ballistic Gun Assault Rifle Ballistic Cannon Battle Cannon Launcher Subdweller Shrapnel Launcher Build | -11 -10 -10 -10 ------- Run | Yrd Mat Min Sub Slots Evolved . | . . . . Power . | . . . . Propulsion . | . . . . Utility . | . . . . Weapon . | . . . . Parts Attached 32 | 6 8 . 18 Power 4 | 1 1 . 2 Engine 4 | 1 1 . 2 Core . | . . . . Reactor . | . . . . Propulsion 9 | 2 2 . 5 Treads 4 | 2 2 . . Leg 5 | . . . 5 Wheel . | . . . . Hover . | . . . . Flight . | . . . . Utility 8 | 1 4 . 3 Device 1 | . . . 1 Storage 3 | 1 2 . . Processor 1 | . 1 . . Hackware . | . . . . Protection 3 | . 1 . 2 Artifact . | . . . . Weapon 11 | 2 1 . 8 Energy Gun 3 | 2 . . 1 Energy Cannon . | . . . . Ballistic Gun 3 | . 1 . 2 Ballistic Cannon 4 | . . . 4 Launcher 1 | . . . 1 Special Weapon . | . . . . Impact Weapon . | . . . . Slashing Weapon . | . . . . Piercing Weapon . | . . . . Special Melee Weapon . | . . . . Unidentified Prototypes . | . . . . Parts Lost 10 | . . . 10 Power 2 | . . . 2 Propulsion 3 | . . . 3 Utility 1 | . . . 1 Weapon 4 | . . . 4 Highest Loss Streak 6 | . . . 6 To Critical Strikes . | . . . . Average Backups 8 | 2 7 10 9 Power 1 | . 1 3 1 Propulsion 2 | 1 3 4 2 Utility 3 | . . 2 3 Weapon 1 | . 1 1 1 Tool/Special . | . . . . Unused Backups 7 | . . . 7 Power 2 | . . . 2 Propulsion . | . . . . Utility 3 | . . . 3 Weapon 2 | . . . 2 Tool/Special . | . . . . Average Slot Usage (%) 99 | . 95 100 99 Engine 13 | . 14 14 13 Treads 6 | . 28 28 1 Leg 20 | . . . 26 Device 2 | . . . 2 Storage 14 | . 14 14 14 Protection 10 | . 5 14 11 Energy Gun 5 | . 19 14 2 Ballistic Gun 3 | . 8 14 2 Ballistic Cannon 16 | . . . 21 Launcher 1 | . . . 2 Peak Build Rating 15 | 6 8 8 15 Average Rating 10 | 4 7 8 11 On Entrance 5 | . 6 8 8 Avg Prop Armor Cover (%) . | . . . . Naked Turns . | . . . . Heaviest Build 27 | 14 20 20 27 Greatest Support 40 | 40 40 40 40 Greatest Overweight (x) 2 | . . . 2 Average Overweight (x) . | . . . . Largest Inventory Capacity 10 | 8 10 10 10 Average Capacity 9 | 6 8 10 10 Most Carried 10 | 4 10 10 10 Average Carried 8 | 2 7 10 9 Final Capacity 10 | 8 10 10 10 Final Carried 10 | 4 10 10 7 Class Distribution -------------------- 98% | Mutant Dominant Class ---------------- Mutant | -10/Materials Mutant | -10/Mines Mutant | -10/Subcaves Resources | -11 -10 -10 -10 ----------- Run | Yrd Mat Min Sub Matter Collected 693 | 215 169 25 284 Remotely . | . . . . Salvage Created 616 | . 295 38 283 Parts 54 | . 26 6 22 Haulers Intercepted 2 | . 2 . . Recyclers Shooed 2 | . 2 . . Parts Field Recycled . | . . . . Retrieved Matter . | . . . . Parts Self-Destructed 2 | . . . 2 Prevented . | . . . . Parts Restored . | . . . . Kills | -11 -10 -10 -10 ------- Run | Yrd Mat Min Sub Combat Hostiles Destroyed 19 | . 5 3 11 Guns 13 | . 5 3 5 Cannons 5 | . . . 5 AOE 1 | . . . 1 Classes Destroyed 8 | . 6 1 1 Worker 1 | . 1 . . Builder 1 | . . 1 . Hauler 2 | . 2 . . Operator 1 | . 1 . . Watcher 3 | . 3 . . Swarmer 6 | . 3 3 . Grunt 4 | . 2 . 2 Subdweller 9 | . . . 9 Best Kill Streak 6 | . 6 3 3 Combat Bots Only 5 | . 5 3 3 Max Kills in Single Turn 1 | . 1 1 1 Gunslinging . | . . . . Exploded 1 | . . . 1 Melee . | . . . . Uniques/NPCs Destroyed . | . . . . Combat | -11 -10 -10 -10 -------- Run | Yrd Mat Min Sub Hostile Shots Fired 140 | . 45 13 82 Missed 35 | . 13 5 17 Hits 105 | . 32 8 65 Projectile 105 | . 32 8 65 Critical Strikes 4 | . 1 . 3 Damage Taken 1738 | . 366 60 1312 Core 271 | . 53 . 218 Absorbed by Shields . | . . . . Redirected to Shielding 56 | . . 3 53 Core Remaining (%) 100 | 100 . . . Volleys Fired 87 | . 27 5 55 Largest 2 | . 2 2 2 Hottest 125 | . 100 70 125 Shots Fired 158 | . 54 10 94 Gun 98 | . 54 10 34 Cannon 59 | . . . 59 Launcher 1 | . . . 1 Special . | . . . . Kinetic 87 | . 18 5 64 Thermal 71 | . 36 5 30 Explosive . | . . . . Electromagnetic . | . . . . Robot Hit Streak 11 | . 5 2 11 Robot Miss Streak 4 | . 4 2 3 Penetration Max . | . . . . Secondary Targets 5 | . 3 1 1 Max Gunslinging Chain 1 | . 1 1 1 Shots Hit Robots 100 | . 34 4 62 Core Hits 42 | . 20 3 19 Critical Kills . | . . . . Critical Parts Destroyed . | . . . . Critical Strikes 4 | . 1 . 3 Burn 3 | . 1 . 2 Blast 1 | . . . 1 Melee Attacks . | . . . . Impact . | . . . . Slashing . | . . . . Piercing . | . . . . Sneak Attacks . | . . . . Combat Hostiles . | . . . . Follow-up Attacks . | . . . . Damage Inflicted 2005 | . 643 58 1304 Guns 934 | . 486 49 399 Cannons 786 | . . . 786 Explosions 276 | . 157 . 119 Melee . | . . . . Ramming 9 | . . 9 . Kinetic 1108 | . 137 13 958 Thermal 731 | . 349 36 346 Explosive 157 | . 157 . . Electromagnetic . | . . . . Impact . | . . . . Slashing . | . . . . Piercing . | . . . . Highest Corruption . | . . . . Average Corruption . | . . . . Corruption Purged . | . . . . Corruption Blocked . | . . . . Overload Shots . | . . . . Overflow Damage 45 | . 45 . . Projectiles . | . . . . Explosions 45 | . 45 . . Melee . | . . . . Knockbacks 11 | . . . 11 Impact . | . . . . Kinetic 11 | . . . 11 Secondary . | . . . . Self-Inflicted Damage . | . . . . Shots . | . . . . Rammed 1 | . . 1 . Targets Rammed 2 | . . 2 . Kicked . | . . . . Crushed 1 | . . 1 . Highest Temperature 389 | . 389 56 274 Average Temperature 111 | . 140 29 69 Received Heat Transfer 682 | . 144 . 538 Effects 1 | . 1 . . Shutdowns 1 | . 1 . . Siege Activations . | . . . . Martial Activations . | . . . . Shielding Activations . | . . . . Robots Disrupted . | . . . . Combat Hostiles . | . . . . Robots Corrupted . | . . . . Combat Hostiles . | . . . . Parts Fried . | . . . . Impact Corruptions . | . . . . Robots Melted . | . . . . Combat Hostiles . | . . . . Parts Melted 4 | . 2 . 2 Heat Transferred 2146 | . 1110 111 925 Parts Sabotaged . | . . . . Parts Stolen . | . . . . Parts Stripped . | . . . . Power Chain Reactions . | . . . . Alert | -11 -10 -10 -10 ------- Run | Yrd Mat Min Sub Maximum Alert Level . | . . . . Low Security (%) 100 | 100 100 100 . Level 1 . | . . . . Level 2 . | . . . . Level 3 . | . . . . Level 4 . | . . . . Level 5 . | . . . . High Security . | . . . . Max Security . | . . . . Peak Influence 138 | . 138 108 . Initial 38 | . . 38 . Average 61 | . 74 70 . Influence Increases 398 | . 228 75 95 Destroy 0b10 Robot/C 200 | . 100 60 40 Destroy 0b10 Robot/NC 40 | . 35 5 . Destroy Leader 50 | . 30 10 10 Successful Hack 17 | . 17 . . Disable Machine 30 | . 30 . . Destroy Structure 16 | . 16 . . Lose Combat Pursuer 45 | . . . 45 Influence Decreases 398 | . 129 141 128 Entered New Map 79 | . . 61 18 Time Decay 314 | . 129 80 105 Lost Part 5 | . . . 5 Squads Dispatched 1 | . 1 . . Investigation 1 | . 1 . . Extermination . | . . . . Reinforcement . | . . . . Assault . | . . . . Garrison . | . . . . Intercept . | . . . . Searches Triggered . | . . . . Construction Impeded . | . . . . Haulers Reinforced . | . . . . Active Scanning Responses . | . . . . Cargo Convoy Interrupts . | . . . . Stealth | -11 -10 -10 -10 --------- Run | Yrd Mat Min Sub Distress Signals . | . . . . Communications Jammed . | . . . . Distress Signals . | . . . . Times Spotted 26 | . 10 3 13 Peak Tracking Total 5 | . 5 3 5 Tactical Retreats 2 | . . . 2 Traps | -11 -10 -10 -10 ------- Run | Yrd Mat Min Sub Traps Triggered 1 | . 1 . . Indirectly . | . . . . Trap Hack Attempts . | . . . . Triggered . | . . . . Disarmed . | . . . . Reprogrammed . | . . . . Reused . | . . . . Traps Extracted . | . . . . Installed 1 | . . . 1 Triggered . | . . . . Machines | -11 -10 -10 -10 ---------- Run | Yrd Mat Min Sub Machines Disabled 2 | . 2 . . Max in Single Turn 2 | . 2 . . Machines Repaired . | . . . . Machines Dismantled . | . . . . Machines Sabotaged . | . . . . Overloaded Fab Kills . | . . . . Hacking | -11 -10 -10 -10 --------- Run | Yrd Mat Min Sub Machines Accessed 4 | . 4 . . Terminals 4 | . 4 . . Fabricators . | . . . . Repair Stations . | . . . . Recycling Units . | . . . . Scanalyzers . | . . . . Garrison Access . | . . . . Total Hacks 12 | . 12 . . Successful 5 | . 5 . . Failed 7 | . 7 . . Catastrophic 1 | . 1 . . Database Lockouts . | . . . . Manual 9 | . 9 . . Terminals 12 | . 12 . . Fabricators . | . . . . Repair Stations . | . . . . Recycling Units . | . . . . Scanalyzers . | . . . . Garrison Access . | . . . . Terminal Hacks 3 | . 3 . . Prototype ID Bank 1 | . 1 . . Terminal Index 1 | . 1 . . Locate Traps 1 | . 1 . . Fabricator Hacks . | . . . . Repair Station Hacks . | . . . . Recycling Unit Hacks . | . . . . Scanalyzer . | . . . . Garrison Access Hacks . | . . . . Unauthorized Hacks 2 | . 2 . . Terminals 2 | . 2 . . Botnet 1 | . 1 . . Disrupt 1 | . 1 . . Fabricators . | . . . . Repair Stations . | . . . . Recycling Units . | . . . . Scanalyzers . | . . . . Garrison Access . | . . . . Data Cores Recovered 1 | . 1 . . Used . | . . . . Hacking Detections 4 | . 4 . . Full Trace Events . | . . . . Feedback Events . | . . . . Feedback Blocked . | . . . . Robot Schematics Acquired . | . . . . Robots Built . | . . . . Authchips . | . . . . Time . | . . . . Total Robot Build Rating . | . . . . Part Schematics Acquired . | . . . . Parts Built . | . . . . Authchips . | . . . . Time . | . . . . Total Part Build Rating . | . . . . Part Studies Acquired . | . . . . Parts Repaired . | . . . . Time . | . . . . Parts Recycled . | . . . . Recycled Matter . | . . . . Retrieved Matter . | . . . . Retrieved Components . | . . . . Parts Scanalyzed . | . . . . Part Schematics Acquired . | . . . . Parts Damaged . | . . . . Bothacking | -11 -10 -10 -10 ------------ Run | Yrd Mat Min Sub Used RIF Installer . | . . . . Robots Hacked . | . . . . Non-combat . | . . . . Combat . | . . . . Robot Hacks Applied . | . . . . Relay Couplers Released . | . . . . Fabnet Peak Effective % . | . . . . Robots Rewired . | . . . . Allies Hacked . | . . . . Hacks Repelled . | . . . . Allies | -11 -10 -10 -10 -------- Run | Yrd Mat Min Sub Total Allies 1 | . . 1 . Largest Group 1 | . . 1 1 Highest-Rated Group 31 | . . 31 31 Highest-Rated Ally 31 | . . 31 31 Total Orders . | . . . . Ally Attacks 5 | . . . 5 Total Damage 83 | . . . 83 Kills . | . . . . Allies Corrupted . | . . . . Allies Melted . | . . . . Intel | -11 -10 -10 -10 ------- Run | Yrd Mat Min Sub Active Infowar (turns) 97 | . 97 . . Optics 97 | . 97 . . Robot Analysis Total . | . . . . Derelict Logs Recovered 1 | . . . 1 Drone Launches . | . . . . Drone Recoveries . | . . . . Exploration | -11 -10 -10 -10 ------------- Run | Yrd Mat Min Sub Turns Passed 2546 | 93 322 170 1961 Spaces Moved 913 | 53 131 84 645 Core 3 | 3 . . . Treads 299 | 50 131 84 34 Legs 611 | . . . 611 Wheels . | . . . . Hover . | . . . . Flight . | . . . . Fastest Speed 50 | 50 160 160 120 Average Speed 148 | 153 160 160 144 Slowest Speed 260 | 160 160 160 260 Overloaded Moves . | . . . . Propulsion Burnouts . | . . . . Robots Hopped . | . . . . Potential Cave-ins . | . . . . Cave-ins Triggered . | . . . . Exploration Rate (%) 26 | 5 47 21 33 Regions Visited 3 Branch Regions 2 Pre-discovered Areas . | . . . . Known Exits Taken . | . . . . Unknown Exits Taken 3 | 1 1 1 . Scrap Searched 2 | . . . 2 Spaces Dug . | . . . . Terrain Destroyed 34 | . 15 . 19 Melee . | . . . . Projectile 2 | . . . 2 AOE 32 | . 15 . 17 Terrain Rammed . | . . . . Walls Destroyed . | . . . . Machines Disabled . | . . . . Actions | -11 -10 -10 -10 --------- Run | Yrd Mat Min Sub Total 1943 | 62 189 109 1583 Wait 870 | . 14 19 837 Move 910 | 52 130 83 645 Hop . | . . . . Pick Up 20 | 4 5 . 11 Fast Attach 13 | 6 2 . 5 Attach 9 | . . . 9 Detach 4 | . 1 . 3 Swap 12 | . 6 . 6 Drop 15 | . 4 . 11 Fire 87 | . 27 5 55 Melee . | . . . . Ram . | . . . . Kick . | . . . . Crush 2 | . . 2 . Escape Stasis . | . . . . Rewire . | . . . . Trap 1 | . . . 1 Miscellaneous . | . . . . Route ------- -11/Scrapyard -10/Materials -10/Mines (discovered 2 exits: [*Mat] / [*Sub]) -10/Subcaves History --------- Turn | Location | Event 12 | -11/Scrapyard | Discovered new exit (range 16) 94 | -11/Scrapyard | Entered Materials 322 | -10/Materials | Build established: Mutant 394 | -10/Materials | Discovered new exit (range 11) 416 | -10/Materials | Entered Mines 468 | -10/Mines | Discovered new exit (range 8) 540 | -10/Mines | Received a Mining Laser from a helpful Derelict 580 | -10/Mines | Discovered new exit (range 5) 586 | -10/Mines | Entered Subcaves 586 | -10/Subcaves | Accompanied by 1 ally 608 | -10/Subcaves | Curiously followed by a Cobbler waking with a query about "LVR3C" 634 | -10/Subcaves | Ambushed by Subdwellers from Twisted Machinery 720 | -10/Subcaves | Lost 6 parts (1p2n1u2w) 1803 | -10/Subcaves | A swath of the cavern ceiling suddenly collapsed 1824 | -10/Subcaves | Shifting Twisted Machinery released Sub. Laser 1825 | -10/Subcaves | Shifting Twisted Machinery released Sub. Optics 2026 | -10/Subcaves | Disturbed a concealed Subdweller 2093 | -10/Subcaves | Learned Materials interactive machine intel 2103 | -10/Subcaves | Core integrity fell below 50% 2139 | -10/Subcaves | Core integrity fell below 20% 2197 | -10/Subcaves | Lost 4 parts (1p1n2w) 2547 | -10/Subcaves | Destroyed by AW-WHQ(R) with Subdweller Laser Last Messages --------------- 02166_ WK-3HW(R) knocked back. 02166_ Battle Cannon destroyed. 02172_ IJ-4EC(O) collects matter. 02173_ WK-3HW(R) knocked back. 02176_ Acquired 3 matter. 02178_ Acquired 2 matter. 02180_ WK-3HW(R) destroyed. 02183_ Acquired 5 matter. 02186_ IJ-4EC(O) puts together Sub. Shrapnel Launcher. 02186_ IJ-4EC(O) collects matter. 02187_ Acquired 9 matter. 02191_ Acquired 1 matter. 02193_ Acquired 14 matter. 02210_ Acquired Sub. Shrapnel Launcher. 02214_ Dropped Lgt. Armor Plating. 02221_ Acquired Sub. Power Source. 02236_ Subatomizers dissect the Sub. Beam Cannon. 02545_ BD-R76(R) destroyed. Map ----- +----------------------------------------------------+ | ?????????????????????????????????????????????????? | | ?????????????????????????????????????????????????? | | ?????????????????????????????????????????????????? | | ?????????????????????????????????????????????????? | | ?????????????????????????????????????????????????? | | ?????????????????????????????????????????????????? | | ?????????????????????????????????????????????????? | | ?????????????????????????????????????????????????? | | ?????????????????????????????????????????????????? | | ?????????????????????????????????????????????????? | | ?????????????????????????????????????????????????? | | ?????????????????????????????????????????????????? | | ?????????????????????????????????????????????????? | | ?????????????????????????????????????????????????? | | ????????????????###??????????????????????????????? | | ???????????????## ?????????????????????????????? | | ???????????????? ?????????????????????? ? ????? | | ????????????????? ???????????????????## #??? | | ??????????????????# ?????????????????# #??? | | ??????????????????# ????####?????#### ???? | | ??????????????????# ???# ##????# ????? | | ?????????????????## #### #???? #????? | | ????????????????## #????? ##???? | | ????????????????# #####? ##??? | | ???????????????????# ## #?? ##?? | | ???????????????????# @ #?? #?? | | ???????????????????# ### ##?# #??? | | ???????????????????# #?# ### #???? | | ??????????????????# #?# ## #????? | | ?????????????????# ?# ## #???### | | ????????????????# ?## ### #### # | | ????????????????# ??## ##?### " | | ????????????????# ???######### | | ???????????????;; ??????# ### | | ?????????????? ??????# ## " | | ?????????????? ;### ?????# " | | ?????????????? #; R ;??## ?????# ### | | ????????????????;=%&?????# ?????###??## | | ??????????????????& ?????? ??????????## ## | | ?????????????????????????? ????????### ##? | | ??????????????????????????##???????## ## | | ???????????????????????????????##### ## # | | ???????????????????????????????# #### # | | ???????????????????????????????# ## | | ???????????????????????????????# ### ##### | | ???????????????????????????????#???# ####"# | | ????????????????????????????????##### """" | | ???????????????######?###?####?## ###" | | ???????????????# ?# ## #?# ### ### # | | ???????????????# ## ##?# #?######### | +----------------------------------------------------+ Best States ------------- Heat Dissipation 25 Coolant Potential 50 Energy Generation 15 Energy Capacity 250 Matter Stores 300 Matter Capacity 300 Sight Range 18 Terrain Scan Density 10 Armor Coverage 150 Weapon Shielding 33 Evasion (%) 55 Recoil Reduction 2 Item Schematics ----------------- None Robot Schematics ------------------ None Fabricated ------------ Nothing Repaired ---------- Nothing Studied --------- None Alien Tech Used ----------------- None Achievements -------------- None Challenges ------------ None Game ------ Seed IonicOmegaJammer Manual? 0 Play Time 00:17:13 Cumulative 206.8 hours Start 2026.08.01 @ 13:51:13 End 2026.08.01 @ 15:59:36 Sessions 3 Manual Loads 0 Difficulty Rogue Special Mode None Game No. 120 Rogue 120 Adventurer 0 Explorer 0 Win Type - Total 4 Types 4/0/0/0/0/0/0/0/0/0 Lore% 74 Gallery% 65 Achievement% 56 Wizard Run 0 Options --------- Layout 1 ASCII 0 Keyboard 0 Movement Numpad Keybinds 0 Fullscreen 1 Font 24/Smallcaps Map View 50x35 Zoom Use 0% Tactical HUD 1 Map Filters NONE Filters NONE Steam 1 RUN: d4077401-451a-436d-8ae3-7182d391e2ca